[Event "Late-Titled-Tuesday-Blitz-March-19-2024"]
[Site "Chess.com"]
[Date "2024.03.19"]
[Round "4"]
[White "IngOscarArdila"]
[Black "campochess"]
[Result "1-0"]
[WhiteElo "2391"]
[BlackElo "2191"]
[TimeControl "180+1"]
[EndTime "14:39:25 PDT"]
[Termination "IngOscarArdila won by resignation"]

1. d4 {[%clk 0:03:00.2]} 1... c5 {[%clk 0:02:59.7]} 2. dxc5 {[%clk 0:03:00.1]}
2... e6 {[%clk 0:02:59.4]} 3. Nf3 {[%clk 0:03:00.7]} 3... Bxc5 {[%clk
0:02:59.1]} 4. e3 {[%clk 0:03:00.6]} 4... Nf6 {[%clk 0:02:57.1]} 5. Nbd2 {[%clk
0:03:00.9]} 5... d5 {[%clk 0:02:57]} 6. Be2 {[%clk 0:03:00.7]} 6... O-O {[%clk
0:02:56.3]} 7. O-O {[%clk 0:03:01.1]} 7... a6 {[%clk 0:02:55]} 8. a3 {[%clk
0:03:01.6]} 8... b5 {[%clk 0:02:54.4]} 9. b4 {[%clk 0:03:01.9]} 9... Bd6 {[%clk
0:02:52.6]} 10. Bb2 {[%clk 0:03:02.1]} 10... Bb7 {[%clk 0:02:52.2]} 11. Nb3
{[%clk 0:03:02.4]} 11... Nbd7 {[%clk 0:02:52.1]} 12. Nfd4 {[%clk 0:02:58.3]}
12... Rc8 {[%clk 0:02:51.2]} 13. Bf3 {[%clk 0:02:55.8]} 13... Ne5 {[%clk
0:02:50.2]} 14. Be2 {[%clk 0:02:55.3]} 14... Nc4 {[%clk 0:02:49.9]} 15. Bc1
{[%clk 0:02:55.2]} 15... g6 {[%clk 0:02:47.8]} 16. c3 {[%clk 0:02:43.4]} 16...
e5 {[%clk 0:02:47.4]} 17. Nf3 {[%clk 0:02:40.4]} 17... Ne4 {[%clk 0:02:46.3]}
18. Qc2 {[%clk 0:02:27.5]} 18... f5 {[%clk 0:02:42.4]} 19. Bxc4 {[%clk
0:02:20.7]} 19... Rxc4 {[%clk 0:02:40.2]} 20. Bb2 {[%clk 0:02:19.3]} 20... Qc7
{[%clk 0:02:38.6]} 21. Rac1 {[%clk 0:02:18.1]} 21... Rc8 {[%clk 0:02:38.1]} 22.
Nbd2 {[%clk 0:02:15.9]} 22... Nxd2 {[%clk 0:02:36.9]} 23. Nxd2 {[%clk
0:02:16.2]} 23... Rh4 {[%clk 0:02:37]} 24. Nf3 {[%clk 0:02:13.3]} 24... Rh5
{[%clk 0:02:36.6]} 25. g3 {[%clk 0:02:02]} 25... g5 {[%clk 0:02:29.1]} 26. Qxf5
{[%clk 0:01:57.1]} 26... Rf8 {[%clk 0:02:23.7]} 27. Qe6+ {[%clk 0:01:48.5]}
27... Kh8 {[%clk 0:02:21.4]} 28. Nd2 {[%clk 0:01:23.5]} 28... Bc6 {[%clk
0:01:59.1]} 29. Qg4 {[%clk 0:01:14.5]} 29... Qf7 {[%clk 0:01:56.3]} 30. c4
{[%clk 0:01:06]} 30... Bd7 {[%clk 0:01:56.2]} 31. Qe2 {[%clk 0:00:56.4]} 31...
bxc4 {[%clk 0:01:56.2]} 32. f4 {[%clk 0:00:45.9]} 32... gxf4 {[%clk 0:01:35.7]}
33. exf4 {[%clk 0:00:45.1]} 33... d4 {[%clk 0:01:18.4]} 34. fxe5 {[%clk
0:00:45.2]} 34... Rxe5 {[%clk 0:01:08.1]} 35. Rxf7 {[%clk 0:00:24.7]} 35... Rxe2
{[%clk 0:01:06.6]} 36. Bxd4+ {[%clk 0:00:24.9]} 36... Kg8 {[%clk 0:01:06.2]} 37.
Rg7+ {[%clk 0:00:24]} 37... Kh8 {[%clk 0:01:05.5]} 38. Rxd7+ {[%clk 0:00:24.1]}
38... Be5 {[%clk 0:01:04.9]} 39. Bxe5+ {[%clk 0:00:23.6]} 39... Rxe5 {[%clk
0:01:03.9]} 40. Nxc4 {[%clk 0:00:23.6]} 40... Re2 {[%clk 0:01:03]} 41. Rd2
{[%clk 0:00:22.9]} 41... Re4 {[%clk 0:01:00.9]} 42. Nd6 {[%clk 0:00:22.3]} 42...
Re3 {[%clk 0:00:59.4]} 43. Nc4 {[%clk 0:00:20.6]} 43... Re6 {[%clk 0:00:56.2]}
44. Rf1 {[%clk 0:00:19.6]} 44... Rc8 {[%clk 0:00:55.1]} 45. Na5 {[%clk
0:00:17.7]} 45... Rc3 {[%clk 0:00:54.3]} 46. Rf7 {[%clk 0:00:13.1]} 46... Kg8
{[%clk 0:00:53.2]} 47. Ra7 {[%clk 0:00:12.7]} 47... Re8 {[%clk 0:00:47.1]} 48.
Rdd7 {[%clk 0:00:11.4]} 48... Rc1+ {[%clk 0:00:46.4]} 49. Kg2 {[%clk 0:00:11.8]}
49... Rc2+ {[%clk 0:00:46.4]} 50. Kh3 {[%clk 0:00:12.3]} 50... Rc3 {[%clk
0:00:39.5]} 51. Rg7+ {[%clk 0:00:12.1]} 51... Kh8 {[%clk 0:00:37.5]} 52. Rxh7+
{[%clk 0:00:12.3]} 52... Kg8 {[%clk 0:00:37.6]} 53. Rag7+ {[%clk 0:00:12.4]}
53... Kf8 {[%clk 0:00:37.4]} 54. Nb7 {[%clk 0:00:12.3]} 54... Rc6 {[%clk
0:00:29.6]} 55. Nc5 {[%clk 0:00:10.7]} 55... Rh6+ {[%clk 0:00:28.3]} 56. Rxh6
{[%clk 0:00:10.9]} 56... Kxg7 {[%clk 0:00:28.4]} 57. Rxa6 {[%clk 0:00:11.1]}
57... Re3 {[%clk 0:00:28.1]} 58. Ra7+ {[%clk 0:00:11.2]} 58... Kg6 {[%clk
0:00:27.1]} 59. b5 {[%clk 0:00:11.3]} 59... Rc3 {[%clk 0:00:26.5]} 60. Ne4
{[%clk 0:00:11.2]} 60... Re3 {[%clk 0:00:26.2]} 61. Nf2 {[%clk 0:00:10.9]} 61...
Re2 {[%clk 0:00:25.9]} 62. Ng4 {[%clk 0:00:10.6]} 1-0

[Event "Late-Titled-Tuesday-Blitz-March-19-2024"]
[Site "Chess.com"]
[Date "2024.03.19"]
[Round "4"]
[White "Mops_2004"]
[Black "xakevicius91"]
[Result "0-1"]
[WhiteElo "2725"]
[BlackElo "2574"]
[TimeControl "180+1"]
[EndTime "14:39:27 PDT"]
[Termination "xakevicius91 won on time"]

1. e4 {[%clk 0:03:00.9]} 1... c5 {[%clk 0:02:55.1]} 2. Nf3 {[%clk 0:03:00.9]}
2... e6 {[%clk 0:02:54.3]} 3. c4 {[%clk 0:03:00.8]} 3... Nc6 {[%clk 0:02:54.1]}
4. d4 {[%clk 0:03:01.4]} 4... cxd4 {[%clk 0:02:55]} 5. Nxd4 {[%clk 0:03:02]}
5... Nf6 {[%clk 0:02:55.1]} 6. Nc3 {[%clk 0:03:02.3]} 6... Bb4 {[%clk
0:02:55.7]} 7. Nxc6 {[%clk 0:03:02.5]} 7... bxc6 {[%clk 0:02:54.2]} 8. Bd3
{[%clk 0:03:02.2]} 8... e5 {[%clk 0:02:54.7]} 9. O-O {[%clk 0:03:02]} 9... O-O
{[%clk 0:02:54.2]} 10. h3 {[%clk 0:03:01.7]} 10... d6 {[%clk 0:02:51.3]} 11. Na4
{[%clk 0:03:01.7]} 11... Bc5 {[%clk 0:02:35.1]} 12. Nxc5 {[%clk 0:03:00.5]}
12... dxc5 {[%clk 0:02:36]} 13. Be3 {[%clk 0:02:59]} 13... Qe7 {[%clk
0:02:35.3]} 14. Qb3 {[%clk 0:02:38.9]} 14... Be6 {[%clk 0:02:26.6]} 15. Qa3
{[%clk 0:02:36.1]} 15... Nd7 {[%clk 0:02:25]} 16. Rfd1 {[%clk 0:02:32.3]} 16...
Rfd8 {[%clk 0:02:00.4]} 17. Qa5 {[%clk 0:02:30.7]} 17... h6 {[%clk 0:01:51.8]}
18. Rd2 {[%clk 0:02:28.7]} 18... g5 {[%clk 0:01:41.9]} 19. Rad1 {[%clk
0:02:27.4]} 19... Kg7 {[%clk 0:01:42.1]} 20. Be2 {[%clk 0:02:25.9]} 20... Kg6
{[%clk 0:01:01.9]} 21. Bxc5 {[%clk 0:02:17.7]} 21... Nxc5 {[%clk 0:00:42.9]} 22.
Rxd8 {[%clk 0:02:16.9]} 22... Nb7 {[%clk 0:00:07.6]} 23. Rxa8 {[%clk 0:01:44.2]}
23... Nxa5 {[%clk 0:00:07.8]} 24. Rdd8 {[%clk 0:01:44.9]} 24... f6 {[%clk
0:00:06]} 25. b3 {[%clk 0:01:31.3]} 25... Nb7 {[%clk 0:00:06.4]} 26. Re8 {[%clk
0:01:32.2]} 26... Qd7 {[%clk 0:00:03.9]} 27. Bg4 {[%clk 0:01:08.4]} 27... Bxg4
{[%clk 0:00:03.6]} 28. hxg4 {[%clk 0:01:09.1]} 28... Nc5 {[%clk 0:00:03.8]} 29.
Rg8+ {[%clk 0:01:09]} 29... Kf7 {[%clk 0:00:03]} 30. f3 {[%clk 0:00:30.4]} 30...
Qd1+ {[%clk 0:00:02.8]} 31. Kh2 {[%clk 0:00:30.2]} 31... Qe1 {[%clk 0:00:03.3]}
32. Rgf8+ {[%clk 0:00:22.5]} 32... Ke7 {[%clk 0:00:03.7]} 33. Rfe8+ {[%clk
0:00:18.8]} 33... Kd7 {[%clk 0:00:04.2]} 34. Red8+ {[%clk 0:00:15.9]} 34... Kc7
{[%clk 0:00:04.6]} 35. Rdc8+ {[%clk 0:00:11.5]} 35... Kd7 {[%clk 0:00:04.9]} 36.
Rd8+ {[%clk 0:00:08.5]} 36... Ke7 {[%clk 0:00:05.3]} 37. Re8+ {[%clk 0:00:08.2]}
37... Kf7 {[%clk 0:00:05.8]} 38. Rf8+ {[%clk 0:00:08.5]} 38... Ke7 {[%clk
0:00:04.3]} 39. Rae8+ {[%clk 0:00:07.1]} 39... Kd6 {[%clk 0:00:02.7]} 40. Rxf6+
{[%clk 0:00:05.6]} 40... Kc7 {[%clk 0:00:02.5]} 41. Rf7+ {[%clk 0:00:03.2]}
41... Kb6 {[%clk 0:00:03]} 42. Rb8+ {[%clk 0:00:03.4]} 42... Ka6 {[%clk
0:00:03.2]} 43. Ra8 {[%clk 0:00:01.6]} 43... Qh4+ {[%clk 0:00:03.8]} 44. Kg1
{[%clk 0:00:02.2]} 44... Qe1+ {[%clk 0:00:04.2]} 45. Kh2 {[%clk 0:00:02.9]}
45... Nd3 {[%clk 0:00:04.3]} 46. Raxa7+ {[%clk 0:00:02.5]} 46... Kb6 {[%clk
0:00:04.8]} 47. Rfb7+ {[%clk 0:00:02.9]} 47... Kc5 {[%clk 0:00:05.2]} 48. Rd7
{[%clk 0:00:01.6]} 48... Qh4+ {[%clk 0:00:04.6]} 49. Kg1 {[%clk 0:00:01.6]}
49... Qf2+ {[%clk 0:00:04.9]} 50. Kh2 {[%clk 0:00:02.5]} 50... Nf4 {[%clk
0:00:04.7]} 51. b4+ {[%clk 0:00:03.4]} 51... Kxc4 {[%clk 0:00:05]} 0-1

[Event "Late-Titled-Tuesday-Blitz-March-19-2024"]
[Site "Chess.com"]
[Date "2024.03.19"]
[Round "4"]
[White "KaydenTroffChess"]
[Black "BilodeauA"]
[Result "1/2-1/2"]
[WhiteElo "2855"]
[BlackElo "3062"]
[TimeControl "180+1"]
[EndTime "14:39:28 PDT"]
[Termination "Game drawn - insufficient material"]

1. d4 {[%clk 0:03:00.9]} 1... d5 {[%clk 0:03:00.3]} 2. Nf3 {[%clk 0:03:00.5]}
2... Nf6 {[%clk 0:02:59.8]} 3. Bf4 {[%clk 0:03:00.7]} 3... e6 {[%clk 0:03:00]}
4. e3 {[%clk 0:03:01.1]} 4... Bd6 {[%clk 0:03:00.7]} 5. Ne5 {[%clk 0:03:01.5]}
5... Nc6 {[%clk 0:03:00.9]} 6. Nd2 {[%clk 0:03:01.2]} 6... Nd7 {[%clk
0:02:59.3]} 7. Ndf3 {[%clk 0:03:00.5]} 7... f6 {[%clk 0:02:52.2]} 8. Nxc6 {[%clk
0:02:48.2]} 8... bxc6 {[%clk 0:02:51.8]} 9. Bg3 {[%clk 0:02:48.7]} 9... O-O
{[%clk 0:02:50.1]} 10. Be2 {[%clk 0:02:47.1]} 10... c5 {[%clk 0:02:22.5]} 11.
O-O {[%clk 0:02:41.8]} 11... Rb8 {[%clk 0:02:19.5]} 12. b3 {[%clk 0:02:40.9]}
12... Qe7 {[%clk 0:02:08.4]} 13. c4 {[%clk 0:02:40.2]} 13... Bb7 {[%clk
0:01:54.7]} 14. cxd5 {[%clk 0:02:31.9]} 14... Bxd5 {[%clk 0:01:55.6]} 15. Rc1
{[%clk 0:02:25.5]} 15... Rfd8 {[%clk 0:01:54.4]} 16. Qc2 {[%clk 0:02:19.3]}
16... Bxf3 {[%clk 0:01:35]} 17. Bxf3 {[%clk 0:02:17.5]} 17... cxd4 {[%clk
0:01:35.1]} 18. exd4 {[%clk 0:02:17.4]} 18... Nb6 {[%clk 0:01:35.6]} 19. Bxd6
{[%clk 0:02:05.1]} 19... cxd6 {[%clk 0:01:34.5]} 20. Rfe1 {[%clk 0:01:58.2]}
20... e5 {[%clk 0:01:28]} 21. Be4 {[%clk 0:01:54.8]} 21... g6 {[%clk 0:01:25.7]}
22. dxe5 {[%clk 0:01:49.8]} 22... dxe5 {[%clk 0:01:24.8]} 23. h4 {[%clk
0:01:28.6]} 23... Rbc8 {[%clk 0:01:24.5]} 24. Qe2 {[%clk 0:01:25.2]} 24... Kg7
{[%clk 0:01:23.3]} 25. h5 {[%clk 0:01:24.5]} 25... f5 {[%clk 0:01:14.2]} 26. Bc6
{[%clk 0:01:19.4]} 26... Rd6 {[%clk 0:01:05.6]} 27. Bb5 {[%clk 0:01:16.9]} 27...
Rxc1 {[%clk 0:01:05]} 28. Rxc1 {[%clk 0:01:17.8]} 28... Nd5 {[%clk 0:01:05]} 29.
hxg6 {[%clk 0:01:17]} 29... Nf4 {[%clk 0:00:59.4]} 30. Qc4 {[%clk 0:01:12.6]}
30... hxg6 {[%clk 0:00:45.8]} 31. Qc7 {[%clk 0:01:07.9]} 31... Kf6 {[%clk
0:00:31.3]} 32. Qxe7+ {[%clk 0:01:01.6]} 32... Kxe7 {[%clk 0:00:32.2]} 33. Rc7+
{[%clk 0:00:58.6]} 33... Kf6 {[%clk 0:00:32.7]} 34. Rxa7 {[%clk 0:00:53.8]}
34... Rd1+ {[%clk 0:00:32.8]} 35. Kh2 {[%clk 0:00:53.7]} 35... e4 {[%clk
0:00:30.7]} 36. g3 {[%clk 0:00:49.3]} 36... Nd5 {[%clk 0:00:26.4]} 37. Rd7
{[%clk 0:00:41.7]} 37... Ke5 {[%clk 0:00:10.2]} 38. Bc4 {[%clk 0:00:38.4]} 38...
Nc3 {[%clk 0:00:10.7]} 39. Rxd1 {[%clk 0:00:38.3]} 39... Nxd1 {[%clk 0:00:11.6]}
40. Kg2 {[%clk 0:00:34.7]} 40... g5 {[%clk 0:00:12]} 41. a4 {[%clk 0:00:34.5]}
41... f4 {[%clk 0:00:12.2]} 42. a5 {[%clk 0:00:30.7]} 42... Kd6 {[%clk
0:00:11.9]} 43. b4 {[%clk 0:00:30.3]} 43... e3 {[%clk 0:00:07.5]} 44. a6 {[%clk
0:00:21.3]} 44... Kc7 {[%clk 0:00:07.3]} 45. f3 {[%clk 0:00:08]} 45... Nc3
{[%clk 0:00:05.7]} 46. gxf4 {[%clk 0:00:07.9]} 46... gxf4 {[%clk 0:00:05.7]} 47.
b5 {[%clk 0:00:07.7]} 47... Kb6 {[%clk 0:00:06.3]} 48. Kf1 {[%clk 0:00:08.1]}
48... Ka7 {[%clk 0:00:04.6]} 49. Kg2 {[%clk 0:00:08.6]} 49... Kb6 {[%clk
0:00:04.6]} 50. Kh3 {[%clk 0:00:07.1]} 50... e2 {[%clk 0:00:04.6]} 51. Bxe2
{[%clk 0:00:07.4]} 51... Nxe2 {[%clk 0:00:05.4]} 52. Kg4 {[%clk 0:00:08.3]}
52... Nd4 {[%clk 0:00:04.9]} 53. Kxf4 {[%clk 0:00:08.8]} 53... Nxb5 {[%clk
0:00:05.2]} 54. Ke5 {[%clk 0:00:09.3]} 54... Kxa6 {[%clk 0:00:03.9]} 55. f4
{[%clk 0:00:09.8]} 55... Nc7 {[%clk 0:00:02.8]} 56. f5 {[%clk 0:00:09.7]} 56...
Ne8 {[%clk 0:00:03.5]} 57. f6 {[%clk 0:00:10]} 57... Nxf6 {[%clk 0:00:03.8]}
1/2-1/2

[Event "Late-Titled-Tuesday-Blitz-March-19-2024"]
[Site "Chess.com"]
[Date "2024.03.19"]
[Round "4"]
[White "BabageldiAnnaberdiyev"]
[Black "Beca95"]
[Result "1/2-1/2"]
[WhiteElo "2633"]
[BlackElo "2950"]
[TimeControl "180+1"]
[EndTime "14:39:30 PDT"]
[Termination "Game drawn by repetition"]

1. e4 {[%clk 0:03:00.9]} 1... e5 {[%clk 0:02:59.5]} 2. Nf3 {[%clk 0:02:59.2]}
2... Nc6 {[%clk 0:02:59.2]} 3. Bc4 {[%clk 0:02:59.2]} 3... Nf6 {[%clk 0:02:59]}
4. d4 {[%clk 0:02:59.3]} 4... exd4 {[%clk 0:02:57.8]} 5. O-O {[%clk 0:02:59.9]}
5... Nxe4 {[%clk 0:02:57]} 6. Re1 {[%clk 0:03:00.4]} 6... d5 {[%clk 0:02:57.2]}
7. Bxd5 {[%clk 0:03:01.3]} 7... Qxd5 {[%clk 0:02:57.5]} 8. Nc3 {[%clk
0:03:02.2]} 8... Qd7 {[%clk 0:02:57.6]} 9. Nxe4 {[%clk 0:03:02]} 9... Be7 {[%clk
0:02:57.1]} 10. Bg5 {[%clk 0:03:02.5]} 10... O-O {[%clk 0:02:57]} 11. Bxe7
{[%clk 0:03:03.1]} 11... Qxe7 {[%clk 0:02:55.2]} 12. Nxd4 {[%clk 0:03:03.5]}
12... Nxd4 {[%clk 0:02:54.2]} 13. Qxd4 {[%clk 0:03:02.4]} 13... Rd8 {[%clk
0:02:45.2]} 14. Qc3 {[%clk 0:03:00.4]} 14... b6 {[%clk 0:02:33.2]} 15. Ng3
{[%clk 0:02:55.1]} 15... Be6 {[%clk 0:02:12]} 16. Re3 {[%clk 0:02:19.6]} 16...
c5 {[%clk 0:02:09.2]} 17. Rae1 {[%clk 0:02:17.3]} 17... Qg5 {[%clk 0:02:08.2]}
18. a3 {[%clk 0:02:14.4]} 18... Rd4 {[%clk 0:02:04.8]} 19. Ne4 {[%clk
0:01:48.9]} 19... Qf4 {[%clk 0:02:00.7]} 20. f3 {[%clk 0:01:40.4]} 20... Rad8
{[%clk 0:01:59.3]} 21. Nf2 {[%clk 0:01:40.8]} 21... h6 {[%clk 0:01:54.3]} 22.
Nd3 {[%clk 0:01:37.4]} 22... Qd6 {[%clk 0:01:54]} 23. Re4 {[%clk 0:01:25.8]}
23... Rxe4 {[%clk 0:01:48.7]} 24. Rxe4 {[%clk 0:01:26.7]} 24... Bf5 {[%clk
0:01:48.6]} 25. Re3 {[%clk 0:01:18.6]} 25... g5 {[%clk 0:01:46.8]} 26. g3 {[%clk
0:01:15.1]} 26... Qd4 {[%clk 0:01:44.4]} 27. Qxd4 {[%clk 0:01:13.9]} 27... Rxd4
{[%clk 0:01:44.9]} 28. Kf2 {[%clk 0:01:04.5]} 28... Kf8 {[%clk 0:01:28.8]} 29.
Ne1 {[%clk 0:01:01]} 29... f6 {[%clk 0:01:26.5]} 30. Re2 {[%clk 0:00:47.5]}
30... Kf7 {[%clk 0:01:24.5]} 31. Ng2 {[%clk 0:00:44.6]} 31... Be6 {[%clk
0:01:21.6]} 32. Ne3 {[%clk 0:00:43.7]} 32... f5 {[%clk 0:01:21.3]} 33. c3 {[%clk
0:00:44.2]} 33... Rd3 {[%clk 0:01:13.7]} 34. f4 {[%clk 0:00:44.5]} 34... Kf6
{[%clk 0:01:13.6]} 35. h4 {[%clk 0:00:30]} 35... g4 {[%clk 0:01:05.1]} 36. Ke1
{[%clk 0:00:20.5]} 36... a5 {[%clk 0:01:03.7]} 37. Nf1 {[%clk 0:00:18.7]} 37...
Bc4 {[%clk 0:00:49.4]} 38. Re3 {[%clk 0:00:12.6]} 38... Rd6 {[%clk 0:00:44.9]}
39. Nd2 {[%clk 0:00:12.6]} 39... Be6 {[%clk 0:00:44.6]} 40. Re5 {[%clk 0:00:12]}
40... Rd3 {[%clk 0:00:41]} 41. Nf1 {[%clk 0:00:11.4]} 41... Rf3 {[%clk
0:00:12.1]} 42. Re3 {[%clk 0:00:09.1]} 42... Bd5 {[%clk 0:00:12.3]} 43. Rxf3
{[%clk 0:00:09.1]} 43... Bxf3 {[%clk 0:00:13.2]} 44. Ne3 {[%clk 0:00:08.9]}
44... a4 {[%clk 0:00:10.6]} 45. Kd2 {[%clk 0:00:09.8]} 45... Ke6 {[%clk
0:00:09.5]} 46. c4 {[%clk 0:00:10.4]} 46... Be4 {[%clk 0:00:09.4]} 47. Kc3
{[%clk 0:00:10.9]} 47... Kd6 {[%clk 0:00:09.5]} 48. Nd1 {[%clk 0:00:10.9]} 48...
Ke6 {[%clk 0:00:08.4]} 49. Ne3 {[%clk 0:00:11.5]} 49... Kd6 {[%clk 0:00:08.4]}
50. Nd1 {[%clk 0:00:12.1]} 50... Ke6 {[%clk 0:00:08.6]} 51. Ne3 {[%clk
0:00:12.6]} 1/2-1/2

[Event "Late-Titled-Tuesday-Blitz-March-19-2024"]
[Site "Chess.com"]
[Date "2024.03.19"]
[Round "4"]
[White "Igrok3069"]
[Black "FabianoCaruana"]
[Result "0-1"]
[WhiteElo "2858"]
[BlackElo "3079"]
[TimeControl "180+1"]
[EndTime "14:39:32 PDT"]
[Termination "FabianoCaruana won on time"]

1. d4 {[%clk 0:02:33.8]} 1... Nf6 {[%clk 0:02:46.3]} 2. Nf3 {[%clk 0:02:32.7]}
2... d5 {[%clk 0:02:44.3]} 3. Bf4 {[%clk 0:02:32.4]} 3... e6 {[%clk 0:02:43.1]}
4. e3 {[%clk 0:02:32.6]} 4... Bd6 {[%clk 0:02:42.9]} 5. Bd3 {[%clk 0:02:32.1]}
5... b6 {[%clk 0:02:42.3]} 6. O-O {[%clk 0:02:31.3]} 6... Bb7 {[%clk 0:02:42.5]}
7. Nbd2 {[%clk 0:02:30.3]} 7... O-O {[%clk 0:02:41.4]} 8. c3 {[%clk 0:02:20.8]}
8... c5 {[%clk 0:02:37.4]} 9. Ne5 {[%clk 0:02:18.5]} 9... Qc7 {[%clk 0:02:31.5]}
10. Qf3 {[%clk 0:02:04.4]} 10... Nc6 {[%clk 0:02:25.9]} 11. Nxc6 {[%clk
0:02:02]} 11... Bxc6 {[%clk 0:02:25]} 12. Bxd6 {[%clk 0:02:00.7]} 12... Qxd6
{[%clk 0:02:25.9]} 13. Qg3 {[%clk 0:02:01]} 13... Qe7 {[%clk 0:02:24.1]} 14.
Rfe1 {[%clk 0:01:53.1]} 14... Rfd8 {[%clk 0:02:18.3]} 15. a3 {[%clk 0:01:52.1]}
15... Bb7 {[%clk 0:02:10.9]} 16. h3 {[%clk 0:01:49.9]} 16... g6 {[%clk 0:02:10]}
17. Qh4 {[%clk 0:01:48.3]} 17... Kg7 {[%clk 0:02:03.7]} 18. Rad1 {[%clk
0:01:41.8]} 18... Rac8 {[%clk 0:02:01]} 19. Nf3 {[%clk 0:01:29.6]} 19... Rc7
{[%clk 0:01:58.4]} 20. Ne5 {[%clk 0:01:28.1]} 20... Ng8 {[%clk 0:01:49.2]} 21.
Qf4 {[%clk 0:01:21.3]} 21... Nf6 {[%clk 0:01:39.4]} 22. Qh4 {[%clk 0:01:20.7]}
22... Rdc8 {[%clk 0:01:36.4]} 23. Re2 {[%clk 0:01:11.8]} 23... Ne8 {[%clk
0:01:26.9]} 24. Qf4 {[%clk 0:01:03.7]} 24... Nd6 {[%clk 0:01:23.2]} 25. Ng4
{[%clk 0:00:58.2]} 25... f6 {[%clk 0:01:07.3]} 26. Qh6+ {[%clk 0:00:55.7]} 26...
Kg8 {[%clk 0:01:07.5]} 27. Qf4 {[%clk 0:00:27]} 27... Rf8 {[%clk 0:01:06.7]} 28.
h4 {[%clk 0:00:24]} 28... Bc6 {[%clk 0:00:37.4]} 29. Ree1 {[%clk 0:00:22.3]}
29... Ba4 {[%clk 0:00:36.9]} 30. Rd2 {[%clk 0:00:21.8]} 30... Be8 {[%clk
0:00:36.4]} 31. Qg3 {[%clk 0:00:20.3]} 31... Kh8 {[%clk 0:00:30]} 32. Rde2
{[%clk 0:00:19.5]} 32... Nf5 {[%clk 0:00:27.9]} 33. Qh2 {[%clk 0:00:17.7]} 33...
Bc6 {[%clk 0:00:24.8]} 34. e4 {[%clk 0:00:16.7]} 34... dxe4 {[%clk 0:00:19.4]}
35. Bxe4 {[%clk 0:00:17.6]} 35... Bb5 {[%clk 0:00:16.1]} 36. Rd2 {[%clk
0:00:06.4]} 36... cxd4 {[%clk 0:00:16.1]} 37. cxd4 {[%clk 0:00:06.2]} 37... Rd7
{[%clk 0:00:12.6]} 38. Red1 {[%clk 0:00:02.3]} 38... Rfd8 {[%clk 0:00:11]} 39.
Qf4 {[%clk 0:00:02]} 39... Kg7 {[%clk 0:00:09]} 40. h5 {[%clk 0:00:02.1]} 40...
g5 {[%clk 0:00:08.6]} 41. h6+ {[%clk 0:00:02.3]} 41... Kf8 {[%clk 0:00:07.3]}
42. Qf3 {[%clk 0:00:01.8]} 42... Qf7 {[%clk 0:00:01.7]} 43. Bxf5 {[%clk
0:00:01.5]} 43... exf5 {[%clk 0:00:02.6]} 44. Qxf5 {[%clk 0:00:01.9]} 44... Rd5
{[%clk 0:00:03.5]} 45. Qf3 {[%clk 0:00:02.3]} 45... f5 {[%clk 0:00:03.4]} 46.
Ne3 {[%clk 0:00:02.8]} 46... g4 {[%clk 0:00:03.2]} 47. Qf4 {[%clk 0:00:02.8]}
47... R5d6 {[%clk 0:00:03.8]} 48. Qxf5 {[%clk 0:00:02.7]} 48... Qxf5 {[%clk
0:00:02.9]} 49. Nxf5 {[%clk 0:00:02.8]} 49... Rf6 {[%clk 0:00:03.8]} 50. Ne3
{[%clk 0:00:02.9]} 50... g3 {[%clk 0:00:03.5]} 51. fxg3 {[%clk 0:00:02.9]} 51...
Rxh6 {[%clk 0:00:04.1]} 52. d5 {[%clk 0:00:02.7]} 52... Rg6 {[%clk 0:00:04]} 53.
Rf2+ {[%clk 0:00:01.2]} 53... Ke7 {[%clk 0:00:04.2]} 0-1

[Event "Late-Titled-Tuesday-Blitz-March-19-2024"]
[Site "Chess.com"]
[Date "2024.03.19"]
[Round "4"]
[White "I-Mesquita"]
[Black "HajiyevKanan"]
[Result "1/2-1/2"]
[WhiteElo "2717"]
[BlackElo "2519"]
[TimeControl "180+1"]
[EndTime "14:39:32 PDT"]
[Termination "Game drawn by repetition"]

1. e4 {[%clk 0:03:00.9]} 1... c6 {[%clk 0:03:00.2]} 2. Nc3 {[%clk 0:02:59.4]}
2... d5 {[%clk 0:03:01.1]} 3. Nf3 {[%clk 0:02:59.7]} 3... a6 {[%clk 0:03:01.8]}
4. h3 {[%clk 0:02:58.5]} 4... dxe4 {[%clk 0:02:55.6]} 5. Nxe4 {[%clk 0:02:58.5]}
5... Nf6 {[%clk 0:02:56.5]} 6. Nxf6+ {[%clk 0:02:57.6]} 6... exf6 {[%clk
0:02:57.4]} 7. d4 {[%clk 0:02:58]} 7... Bf5 {[%clk 0:02:57]} 8. Nh4 {[%clk
0:02:43.5]} 8... Be6 {[%clk 0:02:49.4]} 9. Be3 {[%clk 0:02:39.4]} 9... Bd6
{[%clk 0:02:46]} 10. Bd3 {[%clk 0:02:37.2]} 10... O-O {[%clk 0:02:42.9]} 11. O-O
{[%clk 0:02:32.5]} 11... Nd7 {[%clk 0:02:42.2]} 12. c4 {[%clk 0:02:23.3]} 12...
Re8 {[%clk 0:02:41.8]} 13. Qc2 {[%clk 0:02:22.7]} 13... g6 {[%clk 0:02:38.5]}
14. Rad1 {[%clk 0:02:05.6]} 14... f5 {[%clk 0:02:30.1]} 15. Nf3 {[%clk
0:02:05.6]} 15... Nf6 {[%clk 0:02:27]} 16. Bg5 {[%clk 0:01:59.5]} 16... Be7
{[%clk 0:02:27]} 17. Rfe1 {[%clk 0:01:57.7]} 17... Rc8 {[%clk 0:01:51.9]} 18.
Ne5 {[%clk 0:01:56]} 18... Ne4 {[%clk 0:01:41.8]} 19. Bxe7 {[%clk 0:01:52.3]}
19... Rxe7 {[%clk 0:01:42.7]} 20. Bxe4 {[%clk 0:01:50.8]} 20... fxe4 {[%clk
0:01:43.6]} 21. Qxe4 {[%clk 0:01:39.4]} 21... Bxc4 {[%clk 0:01:41.3]} 22. Qh4
{[%clk 0:01:39.8]} 22... Be6 {[%clk 0:01:36]} 23. Ng4 {[%clk 0:01:40]} 23...
Bxg4 {[%clk 0:01:27.8]} 24. Qxg4 {[%clk 0:01:23.3]} 24... Rcc7 {[%clk
0:01:18.9]} 25. Re5 {[%clk 0:01:20.1]} 25... Rcd7 {[%clk 0:01:05.1]} 26. Rde1
{[%clk 0:01:18]} 26... Qe8 {[%clk 0:00:51.5]} 27. Qg5 {[%clk 0:01:05.3]} 27...
Rxe5 {[%clk 0:00:46.7]} 28. dxe5 {[%clk 0:01:06.2]} 28... Qe6 {[%clk 0:00:43]}
29. h4 {[%clk 0:01:02]} 29... h5 {[%clk 0:00:37.5]} 30. a3 {[%clk 0:00:56.5]}
30... Rd4 {[%clk 0:00:37.5]} 31. Re3 {[%clk 0:00:46.8]} 31... Kg7 {[%clk
0:00:32.2]} 32. Kh2 {[%clk 0:00:29.9]} 32... Rg4 {[%clk 0:00:29.3]} 33. Qd8
{[%clk 0:00:28.7]} 33... Rc4 {[%clk 0:00:17.7]} 34. Qd6 {[%clk 0:00:18.4]} 34...
Rxh4+ {[%clk 0:00:16]} 35. Kg1 {[%clk 0:00:17.8]} 35... Qxd6 {[%clk 0:00:16.3]}
36. exd6 {[%clk 0:00:17.9]} 36... Rd4 {[%clk 0:00:17.2]} 37. Re7 {[%clk
0:00:18.3]} 37... b5 {[%clk 0:00:13]} 38. Ra7 {[%clk 0:00:17.9]} 38... Rxd6
{[%clk 0:00:07.1]} 39. Rxa6 {[%clk 0:00:18.5]} 39... Rd2 {[%clk 0:00:07.9]} 40.
b4 {[%clk 0:00:16.4]} 40... Rd1+ {[%clk 0:00:07]} 41. Kh2 {[%clk 0:00:16.5]}
41... Rd3 {[%clk 0:00:07.6]} 42. Rxc6 {[%clk 0:00:15]} 42... Rxa3 {[%clk
0:00:07.5]} 43. Rc5 {[%clk 0:00:15.6]} 43... Ra2 {[%clk 0:00:08.3]} 44. f3
{[%clk 0:00:15.4]} 44... Rb2 {[%clk 0:00:07.9]} 45. Rxb5 {[%clk 0:00:15.9]}
45... f6 {[%clk 0:00:05.8]} 46. Rb6 {[%clk 0:00:15.4]} 46... g5 {[%clk
0:00:05.6]} 47. b5 {[%clk 0:00:14.5]} 47... Kg6 {[%clk 0:00:06.3]} 48. Rb8
{[%clk 0:00:14.2]} 48... h4 {[%clk 0:00:06.8]} 49. b6 {[%clk 0:00:13.9]} 49...
Rb1 {[%clk 0:00:07.4]} 50. Rb7 {[%clk 0:00:08.1]} 50... Kf5 {[%clk 0:00:07]} 51.
Rb8 {[%clk 0:00:08.7]} 51... Rb2 {[%clk 0:00:07]} 52. Rb7 {[%clk 0:00:08.6]}
52... Kg6 {[%clk 0:00:06.9]} 53. Rb8 {[%clk 0:00:09.1]} 53... Kg7 {[%clk
0:00:06.7]} 54. Rb7+ {[%clk 0:00:09.6]} 54... Kg6 {[%clk 0:00:06.9]} 55. Rb8
{[%clk 0:00:10.5]} 1/2-1/2